[Event "*** SCC Grand Prix: Titled Tuesday Blitz"]
[Site "Chess.com"]
[Date "2020.06.02"]
[Round "10"]
[White "j_coca"]
[Black "canary2016"]
[Result "1-0"]
[WhiteElo "2160"]
[BlackElo "1955"]
[TimeControl "180+1"]
[EndTime "11:57:27 PDT"]
[Termination "j_coca won by resignation"]

1. f4 {[%clk 0:03:00.9]} 1... d5 {[%clk 0:02:59.3]} 2. Nf3 {[%clk 0:02:53.1]}
2... c6 {[%clk 0:02:57.7]} 3. e3 {[%clk 0:02:41.2]} 3... Nf6 {[%clk 0:02:57]} 4.
d4 {[%clk 0:02:42.1]} 4... Ne4 {[%clk 0:02:54.2]} 5. Bd3 {[%clk 0:02:40.4]} 5...
f5 {[%clk 0:02:53.6]} 6. O-O {[%clk 0:02:26.2]} 6... e6 {[%clk 0:02:52.7]} 7. c3
{[%clk 0:02:26]} 7... Bd6 {[%clk 0:02:52.2]} 8. Bd2 {[%clk 0:02:26.9]} 8... O-O
{[%clk 0:02:51.4]} 9. Be1 {[%clk 0:02:27.8]} 9... Be7 {[%clk 0:02:48]} 10. Nbd2
{[%clk 0:02:28.7]} 10... Nd7 {[%clk 0:02:47.9]} 11. Kh1 {[%clk 0:02:26.1]} 11...
Ndf6 {[%clk 0:02:47.2]} 12. Qe2 {[%clk 0:02:21.1]} 12... c5 {[%clk 0:02:46.3]}
13. Rg1 {[%clk 0:02:11.1]} 13... Nxd2 {[%clk 0:02:38.1]} 14. Bxd2 {[%clk
0:02:07.3]} 14... Ne4 {[%clk 0:02:37.9]} 15. Raf1 {[%clk 0:02:07.4]} 15... Bd7
{[%clk 0:02:32.8]} 16. Be1 {[%clk 0:02:06.7]} 16... Rc8 {[%clk 0:02:21.5]} 17.
Ne5 {[%clk 0:02:06.3]} 17... Bc6 {[%clk 0:02:16]} 18. g4 {[%clk 0:02:05.1]}
18... fxg4 {[%clk 0:02:10.1]} 19. Qxg4 {[%clk 0:02:03.2]} 19... Bf6 {[%clk
0:02:08.2]} 20. Qxe6+ {[%clk 0:01:52.3]} 20... Kh8 {[%clk 0:02:06.5]} 21. Nf7+
{[%clk 0:01:45.3]} 21... Rxf7 {[%clk 0:02:06.1]} 22. Qxf7 {[%clk 0:01:46.2]}
22... Qd6 {[%clk 0:01:59.2]} 23. Qh5 {[%clk 0:01:42.5]} 23... Re8 {[%clk
0:01:49.2]} 24. Rf3 {[%clk 0:01:39.2]} 24... c4 {[%clk 0:01:46.8]} 25. Be2
{[%clk 0:01:35.1]} 25... Bd8 {[%clk 0:01:38.6]} 26. Rh3 {[%clk 0:01:31.1]} 26...
Nf6 {[%clk 0:01:34]} 27. Qf3 {[%clk 0:01:21.4]} 27... Re4 {[%clk 0:01:32.5]} 28.
Bh4 {[%clk 0:01:19.7]} 28... Qe6 {[%clk 0:01:26.7]} 29. Qg3 {[%clk 0:01:16.8]}
29... g6 {[%clk 0:01:18.4]} 30. Bxf6+ {[%clk 0:01:14.2]} 30... Qxf6 {[%clk
0:01:12.2]} 31. Qxg6 {[%clk 0:01:05.6]} 31... Qxg6 {[%clk 0:01:07.4]} 32. Rxg6
{[%clk 0:01:04.8]} 32... Bd7 {[%clk 0:01:07.3]} 33. Rhh6 {[%clk 0:00:54.8]}
33... Rxe3 {[%clk 0:01:05.7]} 34. Rd6 {[%clk 0:00:50]} 34... Rxe2 {[%clk
0:00:49.5]} 35. Rxd7 {[%clk 0:00:48.7]} 35... Re1+ {[%clk 0:00:49.3]} 36. Kg2
{[%clk 0:00:48.3]} 36... Bb6 {[%clk 0:00:46.9]} 37. Rhxh7+ {[%clk 0:00:43.7]}
37... Kg8 {[%clk 0:00:46.7]} 38. Rxb7 {[%clk 0:00:42.2]} 38... Re2+ {[%clk
0:00:45.6]} 39. Kf3 {[%clk 0:00:41.8]} 39... Rxb2 {[%clk 0:00:45.3]} 40. Rhd7
{[%clk 0:00:40.9]} 40... Rxa2 {[%clk 0:00:36.7]} 41. Rb8+ {[%clk 0:00:40.5]} 1-0

[Event "*** SCC Grand Prix: Titled Tuesday Blitz"]
[Site "Chess.com"]
[Date "2020.06.02"]
[Round "10"]
[White "AlexOstrovskiy"]
[Black "KaterynaLagno"]
[Result "0-1"]
[WhiteElo "2529"]
[BlackElo "2668"]
[TimeControl "180+1"]
[EndTime "11:57:28 PDT"]
[Termination "KaterynaLagno won by resignation"]

1. d4 {[%clk 0:03:00.9]} 1... Nf6 {[%clk 0:02:59.3]} 2. Bf4 {[%clk 0:02:58.4]}
2... c5 {[%clk 0:02:57.2]} 3. e3 {[%clk 0:02:54.7]} 3... d5 {[%clk 0:02:51.1]}
4. c3 {[%clk 0:02:54.3]} 4... Nc6 {[%clk 0:02:42.8]} 5. Nd2 {[%clk 0:02:53.3]}
5... cxd4 {[%clk 0:02:30.6]} 6. exd4 {[%clk 0:02:53.2]} 6... Bf5 {[%clk
0:02:27.4]} 7. Ngf3 {[%clk 0:02:52.2]} 7... e6 {[%clk 0:02:27.6]} 8. Qb3 {[%clk
0:02:50.3]} 8... Qd7 {[%clk 0:02:10.1]} 9. Ne5 {[%clk 0:02:48.6]} 9... Qc8
{[%clk 0:02:05.9]} 10. Qa4 {[%clk 0:02:24.7]} 10... Nd7 {[%clk 0:01:54.8]} 11.
Nxc6 {[%clk 0:02:19.7]} 11... Qxc6 {[%clk 0:01:52.2]} 12. Qxc6 {[%clk
0:02:11.4]} 12... bxc6 {[%clk 0:01:53.1]} 13. Ba6 {[%clk 0:02:11.5]} 13... e5
{[%clk 0:01:39.8]} 14. dxe5 {[%clk 0:02:06.9]} 14... Nc5 {[%clk 0:01:38.2]} 15.
Be2 {[%clk 0:02:03.9]} 15... Na4 {[%clk 0:01:25.7]} 16. Nf3 {[%clk 0:01:20.6]}
16... Nxb2 {[%clk 0:01:15.3]} 17. Nd4 {[%clk 0:01:20.3]} 17... Bd3 {[%clk
0:01:14.1]} 18. Nxc6 {[%clk 0:01:15.7]} 18... Rc8 {[%clk 0:01:10.9]} 19. Nd4
{[%clk 0:00:54.2]} 19... Rxc3 {[%clk 0:01:08.6]} 20. Rc1 {[%clk 0:00:44.6]}
20... Bb4 {[%clk 0:01:04.1]} 21. Rxc3 {[%clk 0:00:44]} 21... Bxc3+ {[%clk
0:01:05]} 22. Bd2 {[%clk 0:00:18.8]} 22... Bxd4 {[%clk 0:01:04.8]} 23. Bf3
{[%clk 0:00:19.7]} 23... O-O {[%clk 0:01:01.4]} 24. Bxd5 {[%clk 0:00:17.9]}
24... Nc4 {[%clk 0:00:59]} 25. f4 {[%clk 0:00:15.6]} 25... Rb8 {[%clk
0:00:57.6]} 26. Bxc4 {[%clk 0:00:01.9]} 26... Rb1+ {[%clk 0:00:55]} 27. Bc1
{[%clk 0:00:02.1]} 27... Rxc1+ {[%clk 0:00:46.1]} 28. Kd2 {[%clk 0:00:03]} 28...
Rxh1 {[%clk 0:00:46]} 0-1

[Event "*** SCC Grand Prix: Titled Tuesday Blitz"]
[Site "Chess.com"]
[Date "2020.06.02"]
[Round "10"]
[White "AnishGiri"]
[Black "vladislavkovalev"]
[Result "1/2-1/2"]
[WhiteElo "2986"]
[BlackElo "2889"]
[TimeControl "180+1"]
[EndTime "11:57:31 PDT"]
[Termination "Game drawn by agreement"]

1. e4 {[%clk 0:03:00.9]} 1... e5 {[%clk 0:03:00.2]} 2. Nf3 {[%clk 0:03:01.5]}
2... Nc6 {[%clk 0:03:00.8]} 3. Bc4 {[%clk 0:03:02]} 3... Bc5 {[%clk 0:03:00.9]}
4. d3 {[%clk 0:03:02.3]} 4... Nf6 {[%clk 0:03:00.9]} 5. c3 {[%clk 0:03:02.9]}
5... a6 {[%clk 0:03:01]} 6. Bg5 {[%clk 0:03:00.7]} 6... h6 {[%clk 0:03:00.7]} 7.
Bh4 {[%clk 0:03:00.6]} 7... d6 {[%clk 0:03:01.3]} 8. Nbd2 {[%clk 0:03:00.5]}
8... Ba7 {[%clk 0:02:59.5]} 9. O-O {[%clk 0:03:00.5]} 9... g5 {[%clk 0:02:57.7]}
10. Bg3 {[%clk 0:03:00.9]} 10... O-O {[%clk 0:02:58.3]} 11. a4 {[%clk
0:02:56.8]} 11... Kg7 {[%clk 0:02:49.7]} 12. b4 {[%clk 0:02:54.9]} 12... Nh7
{[%clk 0:02:07.2]} 13. b5 {[%clk 0:02:53.8]} 13... Ne7 {[%clk 0:02:01.2]} 14. d4
{[%clk 0:02:53.1]} 14... exd4 {[%clk 0:01:53.4]} 15. Nxd4 {[%clk 0:02:43.3]}
15... f5 {[%clk 0:01:53.6]} 16. exf5 {[%clk 0:02:38.9]} 16... Bxd4 {[%clk
0:01:53.4]} 17. cxd4 {[%clk 0:02:38.1]} 17... Nxf5 {[%clk 0:01:54]} 18. bxa6
{[%clk 0:02:35.9]} 18... bxa6 {[%clk 0:01:50]} 19. Bd5 {[%clk 0:02:33.8]} 19...
Rb8 {[%clk 0:01:47.5]} 20. Ne4 {[%clk 0:02:33.4]} 20... Rb4 {[%clk 0:01:35.4]}
21. Qd2 {[%clk 0:02:11.7]} 21... a5 {[%clk 0:01:31.1]} 22. f4 {[%clk 0:02:04.4]}
22... Ba6 {[%clk 0:01:24.5]} 23. Rfd1 {[%clk 0:01:47.8]} 23... gxf4 {[%clk
0:01:13.8]} 24. Bxf4 {[%clk 0:01:44.9]} 24... Nf6 {[%clk 0:01:14.3]} 25. Nxf6
{[%clk 0:01:40]} 25... Qxf6 {[%clk 0:01:15.2]} 26. Rac1 {[%clk 0:01:27]} 26...
Qxd4+ {[%clk 0:01:01.1]} 27. Qxd4+ {[%clk 0:01:23.3]} 27... Rxd4 {[%clk
0:01:02]} 28. Rxc7+ {[%clk 0:01:09.4]} 28... Kh8 {[%clk 0:01:02.1]} 29. Bd2
{[%clk 0:00:32.7]} 29... Be2 {[%clk 0:00:46]} 30. Bc3 {[%clk 0:00:24.2]} 30...
Bxd1 {[%clk 0:00:46.3]} 31. Be6 {[%clk 0:00:24.9]} 31... Rf6 {[%clk 0:00:39.7]}
32. Bxf5 {[%clk 0:00:20.1]} 32... Rxf5 {[%clk 0:00:40.6]} 33. Bxd4+ {[%clk
0:00:20.5]} 33... Kg8 {[%clk 0:00:41.1]} 1/2-1/2

[Event "*** SCC Grand Prix: Titled Tuesday Blitz"]
[Site "Chess.com"]
[Date "2020.06.02"]
[Round "10"]
[White "MITerryble"]
[Black "gahryman"]
[Result "1-0"]
[WhiteElo "2820"]
[BlackElo "2694"]
[TimeControl "180+1"]
[EndTime "11:57:31 PDT"]
[Termination "MITerryble won by resignation"]

1. Nf3 {[%clk 0:03:00.9]} 1... Nf6 {[%clk 0:02:58.1]} 2. d4 {[%clk 0:02:59.9]}
2... g6 {[%clk 0:02:58.2]} 3. Bg5 {[%clk 0:02:59.7]} 3... Bg7 {[%clk 0:02:57]}
4. c3 {[%clk 0:03:00.2]} 4... O-O {[%clk 0:02:56]} 5. Nbd2 {[%clk 0:03:00.8]}
5... d5 {[%clk 0:02:55.2]} 6. e3 {[%clk 0:03:00.9]} 6... Nbd7 {[%clk 0:02:54.4]}
7. Be2 {[%clk 0:03:01]} 7... c5 {[%clk 0:02:54]} 8. O-O {[%clk 0:03:00.5]} 8...
b6 {[%clk 0:02:54.1]} 9. a4 {[%clk 0:02:59.7]} 9... a6 {[%clk 0:02:41.8]} 10.
Qb3 {[%clk 0:02:54.1]} 10... Bb7 {[%clk 0:02:37.9]} 11. Rfd1 {[%clk 0:02:46.8]}
11... Rc8 {[%clk 0:02:20.5]} 12. Qa3 {[%clk 0:02:43.3]} 12... e6 {[%clk
0:02:13.2]} 13. Ne5 {[%clk 0:02:42.9]} 13... h6 {[%clk 0:02:10.2]} 14. Bh4
{[%clk 0:02:39]} 14... Qe8 {[%clk 0:01:45.2]} 15. Bg3 {[%clk 0:02:34.5]} 15...
Nxe5 {[%clk 0:01:43.8]} 16. Bxe5 {[%clk 0:02:32.2]} 16... Nd7 {[%clk 0:01:44.1]}
17. Bd6 {[%clk 0:02:30.8]} 17... f5 {[%clk 0:01:41.2]} 18. Bxf8 {[%clk
0:02:29.9]} 18... Bxf8 {[%clk 0:01:42.1]} 19. Qa2 {[%clk 0:02:29.1]} 19... g5
{[%clk 0:01:33.9]} 20. c4 {[%clk 0:01:58.6]} 20... g4 {[%clk 0:01:06.5]} 21.
cxd5 {[%clk 0:01:51.9]} 21... exd5 {[%clk 0:01:06.3]} 22. Bd3 {[%clk 0:01:50.7]}
22... Qe6 {[%clk 0:01:02.7]} 23. Qb1 {[%clk 0:01:50.3]} 23... f4 {[%clk
0:00:51.6]} 24. Bf5 {[%clk 0:01:50.5]} 24... Qd6 {[%clk 0:00:46.9]} 25. exf4
{[%clk 0:01:50.2]} 25... h5 {[%clk 0:00:44.2]} 26. Nf1 {[%clk 0:01:48]} 26...
Rd8 {[%clk 0:00:39.8]} 27. Re1 {[%clk 0:01:38.9]} 27... Qxf4 {[%clk 0:00:35.7]}
28. Ng3 {[%clk 0:01:39]} 28... Nf6 {[%clk 0:00:31]} 29. Be6+ {[%clk 0:01:37.2]}
29... Kg7 {[%clk 0:00:26.5]} 30. Nf5+ {[%clk 0:01:37.6]} 30... Kh8 {[%clk
0:00:26.2]} 31. Nh4 {[%clk 0:01:37.4]} 31... Qg5 {[%clk 0:00:19.3]} 32. Re5
{[%clk 0:01:23.6]} 32... Qh6 {[%clk 0:00:12.7]} 33. Bf7 {[%clk 0:01:05.3]} 33...
Ne4 {[%clk 0:00:03.5]} 34. Rxh5 {[%clk 0:01:03.2]} 1-0

[Event "*** SCC Grand Prix: Titled Tuesday Blitz"]
[Site "Chess.com"]
[Date "2020.06.02"]
[Round "10"]
[White "Flawless_Fighter"]
[Black "ajdemipopushi"]
[Result "1-0"]
[WhiteElo "2488"]
[BlackElo "2332"]
[TimeControl "180+1"]
[EndTime "11:57:35 PDT"]
[Termination "Flawless_Fighter won on time"]

1. e4 {[%clk 0:03:00.9]} 1... c5 {[%clk 0:02:59.6]} 2. Nf3 {[%clk 0:03:01.3]}
2... g6 {[%clk 0:02:59.9]} 3. c3 {[%clk 0:03:00.2]} 3... d5 {[%clk 0:02:59.6]}
4. d4 {[%clk 0:03:01.1]} 4... dxe4 {[%clk 0:02:59.4]} 5. Ng5 {[%clk 0:02:59.3]}
5... cxd4 {[%clk 0:02:57.6]} 6. cxd4 {[%clk 0:02:58.2]} 6... Nf6 {[%clk
0:02:57.2]} 7. Bc4 {[%clk 0:02:56.7]} 7... e6 {[%clk 0:02:55.8]} 8. Nc3 {[%clk
0:02:55.4]} 8... Bg7 {[%clk 0:02:55]} 9. Be3 {[%clk 0:02:51.7]} 9... Nd5 {[%clk
0:02:38.9]} 10. Ngxe4 {[%clk 0:02:44.7]} 10... Nxe3 {[%clk 0:02:38.4]} 11. fxe3
{[%clk 0:02:45.6]} 11... O-O {[%clk 0:02:37.5]} 12. O-O {[%clk 0:02:45.8]} 12...
a6 {[%clk 0:02:33.2]} 13. Qf3 {[%clk 0:02:44.1]} 13... Nc6 {[%clk 0:02:25.3]}
14. Rad1 {[%clk 0:02:41.3]} 14... f5 {[%clk 0:01:48.2]} 15. Nc5 {[%clk
0:02:39.6]} 15... Qe7 {[%clk 0:01:48.2]} 16. a3 {[%clk 0:02:34.6]} 16... Kh8
{[%clk 0:01:47.5]} 17. b4 {[%clk 0:02:34.2]} 17... e5 {[%clk 0:00:44.2]} 18. Qf2
{[%clk 0:02:00.1]} 18... b6 {[%clk 0:00:26.1]} 19. N5a4 {[%clk 0:01:41.4]} 19...
b5 {[%clk 0:00:22.7]} 20. Bd5 {[%clk 0:01:42]} 20... Bb7 {[%clk 0:00:20.8]} 21.
Nc5 {[%clk 0:01:42.5]} 21... Rad8 {[%clk 0:00:20.2]} 22. Nxb7 {[%clk 0:01:35.9]}
22... Qxb7 {[%clk 0:00:19.6]} 23. dxe5 {[%clk 0:01:32.2]} 23... Bxe5 {[%clk
0:00:19.3]} 24. Ne2 {[%clk 0:01:30.5]} 24... Qc7 {[%clk 0:00:18.8]} 25. Nf4
{[%clk 0:01:30]} 25... Bxf4 {[%clk 0:00:17.4]} 26. exf4 {[%clk 0:01:29]} 26...
h5 {[%clk 0:00:15.1]} 27. Qc2 {[%clk 0:01:20.7]} 27... Rd6 {[%clk 0:00:11.8]}
28. Bf3 {[%clk 0:01:04.5]} 28... Qb6+ {[%clk 0:00:11.5]} 29. Kh1 {[%clk
0:01:04.5]} 29... Nd4 {[%clk 0:00:11.7]} 30. Qc3 {[%clk 0:01:02.4]} 30... Kh7
{[%clk 0:00:11.3]} 31. Qc5 {[%clk 0:00:54.1]} 31... Qd8 {[%clk 0:00:03.6]} 32.
Rd3 {[%clk 0:00:51.4]} 1-0

[Event "*** SCC Grand Prix: Titled Tuesday Blitz"]
[Site "Chess.com"]
[Date "2020.06.02"]
[Round "10"]
[White "Ariadna_Atreides"]
[Black "levallem"]
[Result "0-1"]
[WhiteElo "2025"]
[BlackElo "2194"]
[TimeControl "180+1"]
[EndTime "11:57:35 PDT"]
[Termination "levallem won on time"]

1. d4 {[%clk 0:03:00.9]} 1... c5 {[%clk 0:03:00.9]} 2. e3 {[%clk 0:02:59.1]}
2... cxd4 {[%clk 0:03:00.8]} 3. exd4 {[%clk 0:02:59.2]} 3... d5 {[%clk
0:03:01.7]} 4. c3 {[%clk 0:02:59.2]} 4... Nf6 {[%clk 0:03:02]} 5. Bd3 {[%clk
0:02:57.1]} 5... Nc6 {[%clk 0:03:00.3]} 6. Ne2 {[%clk 0:02:55.5]} 6... Bg4
{[%clk 0:02:58.1]} 7. O-O {[%clk 0:02:49.5]} 7... e6 {[%clk 0:02:58.1]} 8. f3
{[%clk 0:02:32.3]} 8... Bh5 {[%clk 0:02:57.4]} 9. Nf4 {[%clk 0:02:30.6]} 9...
Bg6 {[%clk 0:02:57.4]} 10. Nxg6 {[%clk 0:02:24.9]} 10... hxg6 {[%clk 0:02:58.3]}
11. Bg5 {[%clk 0:02:24.4]} 11... Qc7 {[%clk 0:02:51.4]} 12. g3 {[%clk
0:02:15.9]} 12... Bd6 {[%clk 0:02:46.7]} 13. Qe1 {[%clk 0:01:52.5]} 13... O-O-O
{[%clk 0:02:42.1]} 14. Na3 {[%clk 0:01:49.6]} 14... a6 {[%clk 0:02:29.5]} 15. b4
{[%clk 0:01:41.6]} 15... Rh5 {[%clk 0:02:29.3]} 16. Bxf6 {[%clk 0:01:34.2]}
16... gxf6 {[%clk 0:02:30.2]} 17. f4 {[%clk 0:01:15.7]} 17... Rdh8 {[%clk
0:02:28.2]} 18. Rf2 {[%clk 0:01:15.1]} 18... g5 {[%clk 0:02:14.6]} 19. b5 {[%clk
0:01:12.3]} 19... gxf4 {[%clk 0:02:05.1]} 20. bxc6 {[%clk 0:01:07.8]} 20... fxg3
{[%clk 0:02:04.5]} 21. cxb7+ {[%clk 0:01:05.7]} 21... Kb8 {[%clk 0:02:03.2]} 22.
Rg2 {[%clk 0:01:05.1]} 22... gxh2+ {[%clk 0:02:00.6]} 23. Kh1 {[%clk 0:01:04.9]}
23... Bxa3 {[%clk 0:01:59.6]} 24. Bxa6 {[%clk 0:00:54]} 24... Rg5 {[%clk
0:01:50.5]} 25. Rxg5 {[%clk 0:00:31.6]} 25... fxg5 {[%clk 0:01:51.4]} 26. Qe5
{[%clk 0:00:31.7]} 26... Qxe5 {[%clk 0:01:42]} 27. dxe5 {[%clk 0:00:31.6]} 27...
Bc5 {[%clk 0:01:26.8]} 28. Rf1 {[%clk 0:00:28.5]} 28... Rh7 {[%clk 0:01:20.7]}
29. Rb1 {[%clk 0:00:11.3]} 29... g4 {[%clk 0:01:18.6]} 30. Bf1 {[%clk
0:00:05.6]} 30... g3 {[%clk 0:01:15]} 31. a4 {[%clk 0:00:04.8]} 31... Rh5 {[%clk
0:01:10.7]} 32. a5 {[%clk 0:00:03.1]} 32... Rxe5 {[%clk 0:01:09.6]} 33. a6
{[%clk 0:00:03.2]} 33... Bf2 {[%clk 0:01:01.2]} 34. Bg2 {[%clk 0:00:02.8]} 34...
Re1+ {[%clk 0:00:58.2]} 35. Rxe1 {[%clk 0:00:02.2]} 35... Bxe1 {[%clk
0:00:59.1]} 0-1

[Event "*** SCC Grand Prix: Titled Tuesday Blitz"]
[Site "Chess.com"]
[Date "2020.06.02"]
[Round "10"]
[White "elegant285"]
[Black "jlandaw"]
[Result "0-1"]
[WhiteElo "2388"]
[BlackElo "2541"]
[TimeControl "180+1"]
[EndTime "11:57:38 PDT"]
[Termination "jlandaw won by resignation"]

1. d4 {[%clk 0:03:00.9]} 1... Nf6 {[%clk 0:02:59]} 2. c4 {[%clk 0:03:00.5]} 2...
e6 {[%clk 0:02:58.4]} 3. Nf3 {[%clk 0:03:00.2]} 3... b6 {[%clk 0:02:58.4]} 4. a3
{[%clk 0:02:59.7]} 4... Bb7 {[%clk 0:02:57.9]} 5. Nc3 {[%clk 0:03:00.2]} 5...
Ne4 {[%clk 0:02:55.6]} 6. Nxe4 {[%clk 0:02:47.6]} 6... Bxe4 {[%clk 0:02:56.5]}
7. g3 {[%clk 0:02:41.7]} 7... Be7 {[%clk 0:02:42.3]} 8. Bg2 {[%clk 0:02:41.9]}
8... O-O {[%clk 0:02:42.1]} 9. O-O {[%clk 0:02:42.1]} 9... c5 {[%clk 0:02:40]}
10. d5 {[%clk 0:02:41.3]} 10... d6 {[%clk 0:02:37.4]} 11. Re1 {[%clk 0:02:28.9]}
11... e5 {[%clk 0:02:36.6]} 12. Nd2 {[%clk 0:02:03.8]} 12... Bg6 {[%clk
0:02:35]} 13. e4 {[%clk 0:02:02.1]} 13... a6 {[%clk 0:02:31.3]} 14. b4 {[%clk
0:02:01.5]} 14... Nd7 {[%clk 0:02:29.4]} 15. Bb2 {[%clk 0:01:57.2]} 15... Qc7
{[%clk 0:02:18.4]} 16. Rc1 {[%clk 0:01:46.8]} 16... Bg5 {[%clk 0:02:17.3]} 17.
h4 {[%clk 0:01:42.7]} 17... Bh6 {[%clk 0:02:00.3]} 18. Rc2 {[%clk 0:01:39.9]}
18... f6 {[%clk 0:01:52]} 19. Bh3 {[%clk 0:01:37.7]} 19... cxb4 {[%clk
0:01:48.6]} 20. axb4 {[%clk 0:01:37]} 20... a5 {[%clk 0:01:49.2]} 21. Bxd7
{[%clk 0:01:19.7]} 21... Qxd7 {[%clk 0:01:48.4]} 22. c5 {[%clk 0:01:16.7]} 22...
dxc5 {[%clk 0:01:43.1]} 23. bxc5 {[%clk 0:01:16.3]} 23... bxc5 {[%clk
0:01:37.8]} 24. Rxc5 {[%clk 0:01:16.5]} 24... Rfb8 {[%clk 0:01:33.6]} 25. Qc2
{[%clk 0:01:11.8]} 25... Qh3 {[%clk 0:00:47.6]} 26. Rc7 {[%clk 0:00:49.9]} 26...
Bh5 {[%clk 0:00:45.8]} 27. Rc3 {[%clk 0:00:38.6]} 27... Rc8 {[%clk 0:00:45.6]}
28. f3 {[%clk 0:00:20.2]} 28... Rxc3 {[%clk 0:00:41.2]} 29. Qxc3 {[%clk
0:00:18.6]} 29... Qxg3+ {[%clk 0:00:33.2]} 30. Kf1 {[%clk 0:00:18.9]} 30... Bxd2
{[%clk 0:00:32.8]} 31. Qc2 {[%clk 0:00:17.9]} 0-1

[Event "*** SCC Grand Prix: Titled Tuesday Blitz"]
[Site "Chess.com"]
[Date "2020.06.02"]
[Round "10"]
[White "ecwinslow"]
[Black "Kopytkin"]
[Result "0-1"]
[WhiteElo "2141"]
[BlackElo "2304"]
[TimeControl "180+1"]
[EndTime "11:57:40 PDT"]
[Termination "Kopytkin won by resignation"]

1. e4 {[%clk 0:03:00.9]} 1... c5 {[%clk 0:03:00]} 2. Nf3 {[%clk 0:02:56.1]} 2...
e6 {[%clk 0:03:00.3]} 3. d4 {[%clk 0:02:47.8]} 3... cxd4 {[%clk 0:03:00.4]} 4.
Nxd4 {[%clk 0:02:48.3]} 4... Nc6 {[%clk 0:03:01.3]} 5. Nc3 {[%clk 0:02:47.1]}
5... Qc7 {[%clk 0:03:00.9]} 6. Be2 {[%clk 0:02:46]} 6... a6 {[%clk 0:02:57.1]}
7. O-O {[%clk 0:02:44.8]} 7... Nxd4 {[%clk 0:02:57.2]} 8. Qxd4 {[%clk
0:02:43.5]} 8... Nf6 {[%clk 0:02:57.3]} 9. Be3 {[%clk 0:02:39.2]} 9... d6 {[%clk
0:02:52.1]} 10. Kh1 {[%clk 0:02:33.2]} 10... Be7 {[%clk 0:02:52.3]} 11. f4
{[%clk 0:02:31.9]} 11... O-O {[%clk 0:02:52.3]} 12. a4 {[%clk 0:02:29.4]} 12...
Nd7 {[%clk 0:02:50.9]} 13. Qd2 {[%clk 0:02:12.7]} 13... b6 {[%clk 0:02:49.5]}
14. Bf3 {[%clk 0:02:05.7]} 14... Bb7 {[%clk 0:02:49.5]} 15. Rad1 {[%clk
0:01:52.2]} 15... Rfd8 {[%clk 0:02:47]} 16. Bd4 {[%clk 0:01:49.3]} 16... Rac8
{[%clk 0:02:43.7]} 17. Rfe1 {[%clk 0:01:34.9]} 17... Bf6 {[%clk 0:02:38.9]} 18.
Bxf6 {[%clk 0:01:24.2]} 18... Nxf6 {[%clk 0:02:36.4]} 19. Qe3 {[%clk 0:01:18.4]}
19... Nd7 {[%clk 0:02:10.5]} 20. h3 {[%clk 0:01:00.7]} 20... Qc5 {[%clk
0:02:02.1]} 21. Qd2 {[%clk 0:00:48.3]} 21... Qc7 {[%clk 0:01:58.2]} 22. Qd4
{[%clk 0:00:41.7]} 22... Nf6 {[%clk 0:01:42.3]} 23. Kh2 {[%clk 0:00:36.4]} 23...
e5 {[%clk 0:01:41.5]} 24. Qd2 {[%clk 0:00:31.5]} 24... Re8 {[%clk 0:01:33.7]}
25. Qxd6 {[%clk 0:00:26.4]} 25... Qxd6 {[%clk 0:01:32.7]} 26. Rxd6 {[%clk
0:00:25.9]} 26... exf4 {[%clk 0:01:30.9]} 27. e5 {[%clk 0:00:23.8]} 27... Bxf3
{[%clk 0:01:28.6]} 28. gxf3 {[%clk 0:00:22.6]} 28... Rc5 {[%clk 0:01:22]} 29.
Kg2 {[%clk 0:00:15.9]} 29... Rcxe5 {[%clk 0:01:19.6]} 30. Rxe5 {[%clk
0:00:15.4]} 30... Rxe5 {[%clk 0:01:20]} 31. Kf2 {[%clk 0:00:15.8]} 31... Re6
{[%clk 0:01:18.1]} 32. Rxe6 {[%clk 0:00:15.2]} 32... fxe6 {[%clk 0:01:18]} 33.
b4 {[%clk 0:00:14.1]} 33... g5 {[%clk 0:01:16.4]} 34. a5 {[%clk 0:00:13.4]}
34... bxa5 {[%clk 0:01:11.8]} 35. bxa5 {[%clk 0:00:13.3]} 35... Kf7 {[%clk
0:01:12.3]} 36. Na4 {[%clk 0:00:13]} 36... Nd7 {[%clk 0:01:11.6]} 37. Ke2 {[%clk
0:00:13]} 37... Kf6 {[%clk 0:01:09]} 38. Kd3 {[%clk 0:00:13.1]} 38... Ke5 {[%clk
0:01:08.4]} 39. c4 {[%clk 0:00:13]} 39... h5 {[%clk 0:01:08]} 40. Nb6 {[%clk
0:00:10.2]} 40... Nc5+ {[%clk 0:01:07.3]} 41. Ke2 {[%clk 0:00:07.7]} 41... Kd4
{[%clk 0:01:04.8]} 42. Nc8 {[%clk 0:00:03.6]} 0-1

[Event "*** SCC Grand Prix: Titled Tuesday Blitz"]
[Site "Chess.com"]
[Date "2020.06.02"]
[Round "10"]
[White "Lovinski"]
[Black "gixfantastix"]
[Result "0-1"]
[WhiteElo "2359"]
[BlackElo "2124"]
[TimeControl "180+1"]
[EndTime "11:57:41 PDT"]
[Termination "gixfantastix won by resignation"]

1. Nf3 {[%clk 0:03:00.9]} 1... Nf6 {[%clk 0:03:00.9]} 2. g3 {[%clk 0:02:58.2]}
2... Nc6 {[%clk 0:02:57.2]} 3. Bg2 {[%clk 0:02:58.5]} 3... e5 {[%clk 0:02:57.8]}
4. c4 {[%clk 0:02:56]} 4... Bc5 {[%clk 0:02:36.6]} 5. d3 {[%clk 0:02:55]} 5...
h6 {[%clk 0:02:35.2]} 6. O-O {[%clk 0:02:55.3]} 6... O-O {[%clk 0:02:35.1]} 7.
Nc3 {[%clk 0:02:54.9]} 7... d5 {[%clk 0:02:28.4]} 8. cxd5 {[%clk 0:02:51.1]}
8... Nxd5 {[%clk 0:02:29.3]} 9. Nxe5 {[%clk 0:02:37.9]} 9... Nxc3 {[%clk
0:01:47.2]} 10. bxc3 {[%clk 0:02:38.8]} 10... Nxe5 {[%clk 0:01:45.8]} 11. d4
{[%clk 0:02:38.6]} 11... Bd6 {[%clk 0:01:43.7]} 12. dxe5 {[%clk 0:02:38.9]}
12... Bxe5 {[%clk 0:01:44.6]} 13. Qb3 {[%clk 0:02:39.2]} 13... Qf6 {[%clk
0:01:36.2]} 14. Ba3 {[%clk 0:02:35]} 14... Rd8 {[%clk 0:01:32.1]} 15. Rac1
{[%clk 0:02:29.4]} 15... Rb8 {[%clk 0:01:23.7]} 16. e4 {[%clk 0:02:14.2]} 16...
Be6 {[%clk 0:01:23.4]} 17. Qb2 {[%clk 0:01:56.5]} 17... Bc4 {[%clk 0:01:20.1]}
18. f4 {[%clk 0:01:46.9]} 18... Bd6 {[%clk 0:01:04.4]} 19. Bxd6 {[%clk
0:01:46.9]} 19... Qxd6 {[%clk 0:01:05.3]} 20. Rfd1 {[%clk 0:01:45.5]} 20... Qc5+
{[%clk 0:01:02.3]} 21. Kh1 {[%clk 0:01:45.9]} 21... Qe3 {[%clk 0:00:53.1]} 22.
Re1 {[%clk 0:01:28.6]} 22... Qd2 {[%clk 0:00:45.6]} 23. Qb4 {[%clk 0:01:22.4]}
23... b5 {[%clk 0:00:28.4]} 24. a4 {[%clk 0:01:19.3]} 24... c6 {[%clk
0:00:22.2]} 25. h3 {[%clk 0:01:06.1]} 25... Qf2 {[%clk 0:00:21.2]} 26. Kh2
{[%clk 0:00:57]} 26... Rd2 {[%clk 0:00:20.9]} 27. Rg1 {[%clk 0:00:57.6]} 27...
Rbd8 {[%clk 0:00:16.9]} 28. axb5 {[%clk 0:00:44.4]} 28... R8d3 {[%clk
0:00:16.9]} 29. Qxc4 {[%clk 0:00:38.6]} 29... Qxg3+ {[%clk 0:00:16.4]} 30. Kh1
{[%clk 0:00:35.3]} 30... Qxh3+ {[%clk 0:00:17.3]} 0-1